Cogmind - Beta 13 *** ADVENTURER MODE // 2024.04.07 @ 16:10:31 Player: Colchis Result: Destroyed by G-47 Trooper with Particle Gun Performance ------------- Evolutions (1) 500 Regions Visited (3) 600 Robots Destroyed (31) 155 Value Destroyed (699) 699 Prototype IDs (1) 20 Alien Tech Used (0) 0 Bonus (0) 0 TOTAL SCORE: 1974 Bonus ------- None Cogmind --------- Core Integrity 0/400 Matter 266/300 Energy 100/100 System Corruption 0% Temperature Cool (9) Movement Core (350) Ox6 Location -9/Mines Parts ------- > --- POWER (1) -------- (None) > --- PROPULSION (2) --- (None) > --- UTILITY (4) ------ Large Storage Unit > --- WEAPON (2) ------- (None) > --- INVENTORY (15) --- Heavy Ion Engine Heavy Ion Engine Large Storage Unit Medium Matter Pod (0) Seismic Detector Hardened Light Armor Plating Hardened Light Armor Plating Peak State ------------ > --- POWER ------------ Heavy Ion Engine > --- PROPULSION ------- Improved Hover Unit Improved Hover Unit > --- UTILITY ---------- Large Storage Unit Small Matter Pod Hardened Light Armor Plating Hardened Light Armor Plating > --- WEAPON ----------- Assault Rifle Grenade Launcher > --- INVENTORY -------- Heavy Ion Engine Heavy Ion Engine Improved Hover Unit Improved Hover Unit Improved Hover Unit Small Storage Unit Large Storage Unit Seismic Detector Hardened Light Armor Plating Hardened Light Armor Plating Particle Gun [Rating: 17] Favorites ----------- Power Heavy Ion Engine Engine Heavy Ion Engine Propulsion Light Treads Treads Light Treads Hover Unit Hover Unit Utility Hardened Light Armor Plating Device Seismic Detector Storage Small Matter Pod Protection Hardened Light Armor Plating Weapon Grenade Launcher Energy Gun EM Pulse Gun Ballistic Gun Assault Rifle Launcher Grenade Launcher Build | -11 -10 -9 -9 ------- Run | Yrd Mat Mat Min Slots Evolved 2 | . . 2 . Power . | . . . . Propulsion . | . . . . Utility 2 | . . 2 . Weapon . | . . . . Parts Attached 23 | 7 6 10 . Power 3 | 1 2 . . Engine 3 | 1 2 . . Core . | . . . . Reactor . | . . . . Propulsion 8 | 2 2 4 . Treads 4 | 2 . 2 . Leg . | . . . . Wheel . | . . . . Hover 4 | . 2 2 . Flight . | . . . . Utility 7 | 2 1 4 . Device 1 | . . 1 . Storage 4 | 2 1 1 . Processor . | . . . . Hackware . | . . . . Protection 2 | . . 2 . Artifact . | . . . . Weapon 5 | 2 1 2 . Energy Gun 2 | 1 . 1 . Energy Cannon . | . . . . Ballistic Gun 2 | 1 . 1 . Ballistic Cannon . | . . . . Launcher 1 | . 1 . . Special Weapon . | . . . . Impact Weapon . | . . . . Slashing Weapon . | . . . . Piercing Weapon . | . . . . Special Melee Weapon . | . . . . Unidentified Prototypes 1 | . 1 . . Parts Lost 8 | . . . 8 Power 1 | . . . 1 Propulsion 2 | . . . 2 Utility 3 | . . . 3 Weapon 2 | . . . 2 Highest Loss Streak 6 | . . . 6 To Critical Strikes . | . . . . Average Slot Usage (%) 96 | . 99 98 74 Engine 11 | . 14 11 9 Treads 13 | . 10 15 19 Hover 9 | . 17 6 . Storage 23 | . 28 22 22 Protection 13 | . . 19 17 Energy Gun 1 | . 1 2 . Ballistic Gun 9 | . 14 8 3 Launcher 10 | . 12 11 2 Naked Turns . | . . . . Heaviest Build 46 | 15 34 46 46 Greatest Support 40 | 40 40 40 40 Greatest Overweight (x) 14 | . 5 14 1 Average Overweight (x) 1 | . 1 1 . Largest Inventory Capacity 15 | 8 15 15 15 Average Capacity 12 | 7 11 15 15 Most Carried 13 | 3 9 13 7 Average Carried 6 | 1 5 7 7 Final Capacity 15 | 8 15 15 15 Final Carried 9 | 2 9 7 7 Class Distribution -------------------- 100% | Mutant Dominant Class ---------------- Mutant | -10/Materials Mutant | -9/Materials Mutant | -9/Mines Resources | -11 -10 -9 -9 ----------- Run | Yrd Mat Mat Min Matter Collected 793 | 312 118 363 . Remotely . | . . . . Salvage Created 863 | 126 144 593 . Parts 57 | 6 11 40 . Haulers Intercepted 3 | . . 3 . Recyclers Shooed 3 | . 2 1 . Parts Field Recycled . | . . . . Retrieved Matter . | . . . . Parts Self-Destructed . | . . . . Prevented . | . . . . Kills | -11 -10 -9 -9 ------- Run | Yrd Mat Mat Min Combat Hostiles Destroyed 16 | . 2 14 . Guns 3 | . . 3 . AOE 13 | . 2 11 . Classes Destroyed 9 | 3 2 4 . Worker 4 | 1 . 3 . Builder 2 | . 1 1 . Tunneler 1 | 1 . . . Hauler 3 | . . 3 . Recycler 3 | 1 1 1 . Watcher 2 | . . 2 . Grunt 12 | . 2 10 . Brawler 1 | . . 1 . Sentry 3 | . . 3 . Best Kill Streak 8 | 2 4 8 . Combat Bots Only 5 | . 2 5 . Max Kills in Single Turn 3 | 1 2 3 . Gunslinging . | . . . . Exploded 2 | . 1 2 . Melee . | . . . . Uniques/NPCs Destroyed . | . . . . Combat | -11 -10 -9 -9 -------- Run | Yrd Mat Mat Min Hostile Shots Fired 210 | . 8 37 165 Missed 64 | . 3 13 48 Damage Taken 1465 | . 87 235 1143 Core 418 | . 12 30 376 Absorbed by Shields . | . . . . Ignored by Resistances 440 | . 27 68 345 Core Remaining (%) 97 | 100 95 . . Volleys Fired 69 | 9 6 43 11 Largest 2 | 2 2 2 2 Hottest 65 | 60 50 65 53 Shots Fired 89 | 12 10 55 12 Gun 58 | 12 6 29 11 Cannon . | . . . . Launcher 31 | . 4 26 1 Special . | . . . . Kinetic 48 | 3 6 28 11 Thermal 1 | . . 1 . Explosive 31 | . 4 26 1 Electromagnetic 9 | 9 . . . Robot Hit Streak 10 | 5 4 8 10 Robot Miss Streak 3 | 3 1 2 1 Penetration Max . | . . . . Secondary Targets . | . . . . Shots Hit Robots 44 | 8 8 21 7 Core Hits 58 | 3 6 46 3 Critical Kills 1 | . . 1 . Critical Parts Destroyed . | . . . . Critical Strikes 1 | . . 1 . Destroy 1 | . . 1 . Melee Attacks . | . . . . Impact . | . . . . Slashing . | . . . . Piercing . | . . . . Sneak Attacks . | . . . . Combat Hostiles . | . . . . Follow-up Attacks . | . . . . Damage Inflicted 2207 | 130 289 1616 172 Guns 597 | 107 67 284 139 Cannons . | . . . . Explosions 1610 | 23 222 1332 33 Melee . | . . . . Ramming . | . . . . Kinetic 514 | 24 67 284 139 Thermal 23 | 23 . . . Explosive 1587 | . 222 1332 33 Electromagnetic 83 | 83 . . . Impact . | . . . . Slashing . | . . . . Piercing . | . . . . Highest Corruption 5 | . 5 . . Average Corruption 5 | . 5 . . Corruption Purged . | . . . . Corruption Blocked . | . . . . Effects 3 | . 3 . . Message Errors 1 | . 1 . . Data Loss (minor) 2 | . 2 . . Overload Shots . | . . . . Overflow Damage 13 | . 9 4 . Projectiles . | . . . . Explosions 13 | . 9 4 . Melee . | . . . . Knockbacks . | . . . . Impact . | . . . . Kinetic . | . . . . Secondary . | . . . . Self-Inflicted Damage 13 | . 13 . . Shots 1 | . 1 . . Rammed . | . . . . Targets Rammed . | . . . . Kicked . | . . . . Crushed . | . . . . Highest Temperature 214 | . 18 116 214 Average Temperature 52 | . 10 29 95 Received Heat Transfer 1050 | . 42 123 885 Siege Activations . | . . . . Robots Corrupted . | . . . . Combat Hostiles . | . . . . Parts Fried 1 | 1 . . . Impact Corruptions . | . . . . Robots Melted . | . . . . Combat Hostiles . | . . . . Parts Melted . | . . . . Heat Transferred 50 | 50 . . . Parts Sabotaged . | . . . . Parts Stolen . | . . . . Parts Stripped . | . . . . Power Chain Reactions 1 | 1 . . . Alert | -11 -10 -9 -9 ------- Run | Yrd Mat Mat Min Peak Influence 337 | 15 100 337 77 Initial 66 | . 8 . 66 Average 98 | 8 13 169 52 Maximum Alert Level 1 | . . 1 . Low Security (%) 81 | 100 100 64 100 Level 1 18 | . . 35 . Level 2 . | . . . . Level 3 . | . . . . Level 4 . | . . . . Level 5 . | . . . . High Security . | . . . . Max Security . | . . . . Squads Dispatched 2 | . . 2 . Investigation . | . . . . Extermination . | . . . . Reinforcement 2 | . . 2 . Assault . | . . . . Garrison . | . . . . Intercept . | . . . . Searches Triggered . | . . . . Construction Impeded 2 | . . 2 . Haulers Reinforced . | . . . . Active Scanning Responses . | . . . . Cargo Convoy Interrupts . | . . . . Stealth | -11 -10 -9 -9 --------- Run | Yrd Mat Mat Min Distress Signals 1 | . . 1 . Communications Jammed . | . . . . Distress Signals . | . . . . Times Spotted 32 | . 2 22 8 Peak Tracking Total 7 | . 2 5 7 Tactical Retreats . | . . . . Traps | -11 -10 -9 -9 ------- Run | Yrd Mat Mat Min Traps Triggered 1 | . 1 . . Indirectly . | . . . . Trap Hack Attempts . | . . . . Triggered . | . . . . Disarmed . | . . . . Reprogrammed . | . . . . Reused . | . . . . Traps Extracted . | . . . . Installed . | . . . . Triggered . | . . . . Machines | -11 -10 -9 -9 ---------- Run | Yrd Mat Mat Min Machines Disabled 3 | . 1 2 . Max in Single Turn 1 | . 1 1 . Machines Repaired . | . . . . Machines Dismantled . | . . . . Machines Sabotaged . | . . . . Overloaded Fab Kills . | . . . . Hacking | -11 -10 -9 -9 --------- Run | Yrd Mat Mat Min Machines Accessed 3 | . 2 1 . Terminals 3 | . 2 1 . Fabricators . | . . . . Repair Stations . | . . . . Recycling Units . | . . . . Scanalyzers . | . . . . Garrison Access . | . . . . Total Hacks 8 | . 4 4 . Successful 5 | . 3 2 . Failed 3 | . 1 2 . Catastrophic . | . . . . Database Lockouts . | . . . . Manual . | . . . . Terminals 8 | . 4 4 . Fabricators . | . . . . Repair Stations . | . . . . Recycling Units . | . . . . Scanalyzers . | . . . . Garrison Access . | . . . . Terminal Hacks 5 | . 3 2 . Record 3 | . 2 1 . Alert Level 1 | . 1 . . Zone Layout 1 | . . 1 . Fabricator Hacks . | . . . . Repair Station Hacks . | . . . . Recycling Unit Hacks . | . . . . Scanalyzer . | . . . . Garrison Access Hacks . | . . . . Unauthorized Hacks . | . . . . Terminals . | . . . . Fabricators . | . . . . Repair Stations . | . . . . Recycling Units . | . . . . Scanalyzers . | . . . . Garrison Access . | . . . . Data Cores Recovered . | . . . . Used . | . . . . Hacking Detections 1 | . 1 . . Full Trace Events . | . . . . Feedback Events . | . . . . Feedback Blocked . | . . . . Robot Schematics Acquired . | . . . . Robots Built . | . . . . Authchips . | . . . . Time . | . . . . Total Robot Build Rating . | . . . . Part Schematics Acquired . | . . . . Parts Built . | . . . . Authchips . | . . . . Time . | . . . . Total Part Build Rating . | . . . . Parts Repaired . | . . . . Time . | . . . . Parts Recycled . | . . . . Recycled Matter . | . . . . Retrieved Matter . | . . . . Retrieved Components . | . . . . Parts Scanalyzed . | . . . . Part Schematics Acquired . | . . . . Parts Damaged . | . . . . Bothacking | -11 -10 -9 -9 ------------ Run | Yrd Mat Mat Min Used RIF Installer . | . . . . Robots Hacked . | . . . . Non-combat . | . . . . Combat . | . . . . Robot Hacks Applied . | . . . . Relay Couplers Released . | . . . . Fabnet Peak Effective % . | . . . . Robots Rewired . | . . . . Allies Hacked . | . . . . Hacks Repelled . | . . . . Allies | -11 -10 -9 -9 -------- Run | Yrd Mat Mat Min Total Allies . | . . . . Largest Group . | . . . . Highest-Rated Group . | . . . . Highest-Rated Ally . | . . . . Total Orders . | . . . . Ally Attacks . | . . . . Total Damage . | . . . . Kills . | . . . . Allies Corrupted . | . . . . Allies Melted . | . . . . Intel | -11 -10 -9 -9 ------- Run | Yrd Mat Mat Min Robot Analysis Total . | . . . . Derelict Logs Recovered . | . . . . Drone Launches . | . . . . Drone Recoveries . | . . . . Exploration | -11 -10 -9 -9 ------------- Run | Yrd Mat Mat Min Turns Passed 2107 | 274 568 1117 148 Spaces Moved 986 | 159 339 427 61 Core 17 | 15 1 1 . Treads 616 | 144 128 283 61 Legs . | . . . . Wheels . | . . . . Hover 353 | . 210 143 . Flight . | . . . . Fastest Speed 50 | 50 116 176 160 Average Speed 189 | 149 156 232 179 Slowest Speed 750 | 160 300 750 240 Overloaded Moves . | . . . . Propulsion Burnouts . | . . . . Robots Hopped . | . . . . Cave-ins Triggered . | . . . . Exploration Rate (%) 21 | 10 29 21 26 Regions Visited 3 Branch Regions 1 Pre-discovered Areas . | . . . . Known Exits Taken . | . . . . Unknown Exits Taken 3 | 1 1 1 . Scrap Searched . | . . . . Spaces Dug . | . . . . Terrain Destroyed 183 | 6 26 140 11 Melee . | . . . . Projectile . | . . . . AOE 183 | 6 26 140 11 Terrain Rammed . | . . . . Walls Destroyed . | . . . . Machines Disabled . | . . . . Actions | -11 -10 -9 -9 --------- Run | Yrd Mat Mat Min Total 1143 | 183 371 502 87 Wait 15 | . . . 15 Move 983 | 158 338 426 61 Hop . | . . . . Pick Up 34 | 9 14 11 . Fast Attach . | . . . . Attach 21 | 7 5 9 . Detach 1 | . . 1 . Swap 2 | . 1 1 . Drop 18 | . 7 11 . Fire 69 | 9 6 43 11 Melee . | . . . . Ram . | . . . . Kick . | . . . . Crush . | . . . . Escape Stasis . | . . . . Rewire . | . . . . Trap . | . . . . Miscellaneous . | . . . . Route ------- -11/Scrapyard -10/Materials -9/Materials -9/Mines History --------- Turn | Location | Event 5 | -11/Scrapyard | Discovered new exit (range 15) 275 | -11/Scrapyard | Entered Materials 314 | -10/Materials | Build established: Mutant 611 | -10/Materials | Discovered new exit (range 14) 843 | -10/Materials | Entered another Materials area 843 | -9/Materials | Evolved 2 slots: Utility x2 1715 | -9/Materials | Discovered new exit (range 8) 1960 | -9/Materials | Entered Mines 2096 | -9/Mines | Core integrity fell below 50% 2104 | -9/Mines | Core integrity fell below 20% 2108 | -9/Mines | Destroyed by G-47 Trooper with Particle Gun Last Messages --------------- [Achievement: Crack Shot] K-01 Serf collects debris. The unstable cave ceiling collapses. Hvy. Assault Rifle destroyed. Critical hit (Burn: +37). G-34 Mercenary destroyed. K-01 Serf collects debris. Hrd. Light Armor Plating destroyed. K-01 Serf collects debris. Hrd. Light Armor Plating destroyed. K-01 Serf collects debris. K-01 Serf destroyed. Lgt. Treads destroyed. Critical hit (Burn: +37). Hvy. Ion Engine destroyed. Lgt. Treads destroyed. K-01 Serf collects debris. Med. Matter Pod destroyed. K-01 Serf collects debris. [Achievement: First Step to Greatness] Map ----- +----------------------------------------------------+ | ?????????????????????????????????????????????????? | | ?????????????????????????????????????????????????? | | ?????????????????????????????????????????????????? | | ?????????????????????????????????????????????????? | | ?????????????????????????????????????????????????? | | ?????????????????????????????????????????????????? | | ?????????????????????????????????????????????????? | | ?????????????????????????????????????????????????? | | ?????????????????????????????????????????????????? | | ?????????????????????????????????????????????????? | | ?????????????????????????????????????????????????? | | ?????????????????????????????????????????????????? | | ?????????????????????###?????????????????????????? | | ????????????????????## ##??????? ???????????????? | | ????????????????????# #??????? ???????????????? | | ????????????????????# ##?????g#???????????????? | | ????????????????????# ###?? #???????????????? | | ????????????????????# t ### ????????????????? | | ????????????????????? ?????????????????? | | ?????????????????????# ??????????????????? | | ????????????????????## gu##??????????????????? | | ???????????????###### g ####???????????????? | | ??????????????## ###?????????????? | | ??????????????# ##????????????? | | ????????####### g b #????????????? | | ??????? @ #????????????? | | ??????? t #???????????? | | ????????????##### g ????????? | | ?????????## ### ????????? | | ?????????# ## ######????????? | | ?????????# %##?# ##?????????????? | | ?????????## ### *#???## ##??????????????? | | ??????????## #?##g #?????###???????????????? | | ?????? ?## #?## #####???????????????????? | | ????? ??#####?## #???????????????????? | | ????? ???????## ### #???????????????????? | | ????? ??????## g ##???????????????????????? | | ????? ?????## k ##????????????????????????? | | ????? ?????# #?????????????????????????? | | ?????? ?????# ##???????? ???????????????? | | ?????? #?????# [%##### ??????????????? | | ?????? ?????## #????????????????????? | | ??????# ??????## #######????????????????????? | | ?????## #???????## ##??????????????????????????? | | ?????? #????????# #???????????????????????????? | | ??????# #??####### #???????????????????????????? | | ??????# #?## ###?????????????????????????? | | ??????# ### #?????????????????????????? | | ??????# ##?????????????????????????? | | ??????# ###??????????????????????????? | +----------------------------------------------------+ Best States ------------- Heat Dissipation 28 Energy Generation 14 Energy Capacity 280 Matter Stores 350 Matter Capacity 400 Sight Range 16 Terrain Scan Density 10 Armor Coverage 300 Resistance: KI 20 Resistance: TH 20 Resistance: EX 20 Resistance: EM 20 Resistance: I 20 Resistance: S 20 Resistance: P 20 Evasion (%) 50 Recoil Reduction 2 Offensive Hacking 10 Item Schematics ----------------- None Robot Schematics ------------------ None Fabricated ------------ Nothing Alien Tech Used ----------------- None Achievements -------------- Crack Shot First Step to Greatness Risk Taker Challenges ------------ None Game ------ Seed ThiefTargetConstruct Manual? 0 Play Time 00:34:53 Cumulative 0.5 hours Start 2024.04.07 @ 15:35:23 End 2024.04.07 @ 16:10:31 Sessions 1 Manual Loads 0 Difficulty Adventurer Special Mode None Game No. 1 Rogue 0 Adventurer 1 Explorer 0 Win Type - Total 0 Types 0/0/0/0/0/0/0/0/0 Lore% 0 Gallery% 2 Achievement% 2 Wizard Run 0 Options --------- Layout 1 ASCII 0 Keyboard 0 Movement Arrows Keybinds 0 Fullscreen 1 Font 24/Smallcaps Map View 50x35 Zoom Use 0% Tactical HUD 0 Map Filters NONE Filters NONE Steam 1 RUN: abc64c6c-32f4-4ca9-9e58-734efbb5c7c7